fUST/lending_fUST_20240408
["ID","MTS","AMOUNT","RATE_DAILY","PERIOD"]
[321888875,1712584240002,-1105.46,0.00062737,120]
[321888877,1712584240011,-1228.05,0.00062737,120]
[321888879,1712584240020,-500.0,0.00062737,120]
[321888881,1712584240030,-500.0,0.00062737,120]
[321888883,1712584240040,-500.0,0.00062737,120]
[321888885,1712584240050,-500.0,0.00062737,120]
[321888887,1712584240059,-1672.78,0.00062737,120]
[321888889,1712584240069,-500.0,0.00062737,120]
[321888891,1712584240078,-446.84671175,0.00062738,7]
[321888893,1712584240088,-1861.89491029,0.00062738,7]
[321888895,1712584240097,-740.52939629,0.00062738,7]
[321888897,1712584240106,-155.46647532,0.00062738,7]
[321888899,1712584240115,-414.01368326,0.00062738,7]
[321888901,1712584240125,-500.0,0.00062738,120]
[321888903,1712584240134,-500.0,0.00062738,120]
[321888904,1712584240143,-500.0,0.00062738,120]
[321888906,1712584240153,-500.0,0.00062738,120]
[321888908,1712584240162,-500.0,0.00062738,120]
[321888909,1712584240171,-500.0,0.00062738,120]
[321888911,1712584240180,-716.86,0.00062739,120]
[321888913,1712584240190,-500.0,0.00062739,120]
[321888915,1712584240200,-515.81,0.00062739,120]
[321888916,1712584240210,-500.0,0.00062739,120]
[321888918,1712584240219,-500.0,0.00062739,120]
[321888920,1712584240228,-500.0,0.00062739,120]
[321888922,1712584240238,-500.01907654,0.00062739,120]
[321888924,1712584240247,-632.66,0.00062739,120]
[321888925,1712584240256,-500.0,0.00062739,120]
[321888927,1712584240265,-833.7,0.00062739,120]
[321888929,1712584240274,-500.0,0.00062739,120]
[321888931,1712584240289,-1067.98,0.00062739,120]
[321888932,1712584240299,-500.0,0.00062739,120]
[321888934,1712584240308,-500.0,0.00062739,120]
[321888936,1712584240317,-500.0,0.00062739,120]
[321888938,1712584240326,-500.0,0.00062739,120]
[321888939,1712584240336,-3744.26,0.00062739,90]
[321888941,1712584240346,-500.0,0.00062739,120]
[321888943,1712584240355,-669.32,0.00062739,21]
[321888945,1712584240365,-500.0,0.00062739,120]
[321888947,1712584240376,-500.0,0.00062739,120]
[321888949,1712584240387,-500.0,0.00062739,120]
[321888951,1712584240396,-500.0,0.00062739,120]
[321888952,1712584240405,-500.0,0.00062739,120]
[321888954,1712584240414,-6096.5,0.00062739,120]
[321888956,1712584240423,-500.0,0.00062739,120]
[321888958,1712584240433,-566.98,0.00062739,120]
[321888960,1712584240442,-500.0,0.00062739,120]
[321888961,1712584240452,-500.0,0.00062739,120]
[321888963,1712584240462,-3625.23,0.00062739,120]
[321888965,1712584240473,-500.0,0.00062739,60]
[321888967,1712584240482,-500.0,0.00062739,120]
[321888969,1712584240492,-1900.0,0.00062739,120]
[321888970,1712584240501,-500.0,0.00062739,120]
[321888972,1712584240511,-500.0,0.00062739,120]
[321888974,1712584240522,-500.0,0.00062739,120]
[321888976,1712584240534,-500.0,0.00062739,120]
[321888978,1712584240544,-554.54,0.00062739,120]
[321888980,1712584240554,-841.39,0.00062739,120]
[321888982,1712584240564,-1834.82,0.00062739,120]
[321888983,1712584240575,-3055.5,0.00063558,120]
[321888985,1712584240586,-2180.13,0.00063558,120]
[321888987,1712584240596,-500.0,0.00063558,120]
[321888989,1712584240606,-1752.06,0.00063558,120]
[321888991,1712584240615,-1469.82,0.00063558,120]
[321888993,1712584240625,-500.0,0.00063558,120]
[321888994,1712584240634,-1688.44,0.00063558,120]
[321888996,1712584240644,-500.0,0.00063558,120]
[321888998,1712584240653,-500.0,0.00063559,120]
[321889000,1712584240664,-500.0,0.00063559,120]
[321889002,1712584240673,-500.0,0.00063559,120]
[321889003,1712584240682,-500.0,0.00063559,120]
[321889005,1712584240691,-500.0,0.00063559,120]
[321889007,1712584240701,-1180.39,0.00063559,120]
[321889009,1712584240713,-500.0,0.00063559,120]
[321889010,1712584240722,-500.0,0.00063559,120]
[321889012,1712584240732,-500.0,0.00063559,120]
[321889014,1712584240742,-1860.21,0.00063559,120]
[321889016,1712584240752,-825.34,0.00063559,120]
[321889018,1712584240762,-500.0,0.00063559,120]
[321889020,1712584240771,-500.0,0.00063559,120]
[321889021,1712584240780,-500.0,0.00063559,120]
[321889023,1712584240789,-500.0,0.00063559,120]
[321889025,1712584240799,-1759.78,0.00063559,120]
[321889027,1712584240808,-500.0,0.00063559,120]
[321889029,1712584240817,-751.15,0.00063559,2]
[321889031,1712584240827,-500.0,0.00063559,120]
[321889032,1712584240836,-18309.75,0.00063559,120]
[321889034,1712584240845,-3005.57,0.00063559,120]
[321889036,1712584240854,-500.0,0.00063559,120]
[321889038,1712584240863,-500.0,0.00063559,120]
[321889040,1712584240872,-500.0,0.00063559,120]
[321889041,1712584240882,-1105.46,0.00063559,120]
[321889043,1712584240892,-1228.05,0.00063559,120]
[321889045,1712584240901,-500.0,0.00063559,120]
[321889047,1712584240911,-500.0,0.00063559,120]
[321889049,1712584240921,-500.0,0.00063559,120]
[321889050,1712584240930,-272.1051629,0.00063559,120]
[321889052,1712584240940,-1672.78,0.00063559,120]
[321889054,1712584240949,-500.0,0.00063559,120]
[321889056,1712584240958,-500.0,0.0006356,120]
[321889058,1712584240969,-500.0,0.0006356,120]
[321889060,1712584240978,-500.0,0.0006356,120]
[321889062,1712584240987,-500.0,0.0006356,120]
[321889064,1712584240996,-500.0,0.0006356,120]
[321889066,1712584241006,-716.86,0.00063561,120]
[321889067,1712584241015,-500.0,0.00063561,120]
[321889069,1712584241025,-515.81,0.00063561,120]
[321889071,1712584241035,-500.0,0.00063561,120]
[321889072,1712584241045,-500.0,0.00063561,120]
[321889074,1712584241054,-500.0,0.00063561,120]
[321889076,1712584241064,-632.66,0.00063561,120]
[321889078,1712584241074,-500.0,0.00063561,120]
[321889080,1712584241083,-833.7,0.00063561,120]
[321889082,1712584241093,-304.98,0.00063561,120]
[321889084,1712584241103,-1067.98,0.00063561,120]
[321889086,1712584241112,-500.0,0.00063561,120]
[321889087,1712584241121,-500.0,0.00063561,120]
[321889089,1712584241133,-500.0,0.00063561,120]
[321889091,1712584241142,-500.0,0.00063561,120]
[321889093,1712584241151,-3744.26,0.00063561,90]
[321889095,1712584241160,-500.0,0.00063561,120]
[321889097,1712584241170,-669.32,0.00063561,21]
[321889099,1712584241179,-500.0,0.00063561,120]
[321889100,1712584241188,-500.0,0.00063561,120]
[321889102,1712584241197,-500.0,0.00063561,120]
[321889104,1712584241207,-500.0,0.00063561,120]
[321889106,1712584241215,-500.0,0.00063561,120]
[321889108,1712584241224,-6096.5,0.00063561,120]
[321889110,1712584241233,-500.0,0.00063561,120]
[321889111,1712584241244,-500.0,0.00063561,120]
[321889113,1712584241254,-3625.23,0.00063561,120]
[321889115,1712584241265,-500.0,0.00063561,120]
[321889117,1712584241279,-500.0,0.00063561,60]
[321889119,1712584241290,-500.0,0.00063561,120]
[321889121,1712584241300,-1900.0,0.00063561,120]
[321889123,1712584241310,-349.36719685,0.00063561,120]
[321889124,1712584241319,-500.0,0.00063561,120]
[321889126,1712584241329,-500.0,0.00063561,120]
[321889128,1712584241339,-500.0,0.00063561,120]
[321889130,1712584241348,-554.54,0.00063561,120]
[321889132,1712584241358,-841.39,0.00063561,120]
[321889134,1712584241367,-1834.82,0.00063561,120]
[321889136,1712584241379,-177.614821,0.00063927,2]
[321889137,1712584241388,-165.00238196,0.00064365,120]
[321889139,1712584241398,-500.0,0.00064379,120]
[321889141,1712584241407,-3055.5,0.0006438,120]
[321889143,1712584241417,-2180.13,0.0006438,120]
[321889145,1712584241426,-1752.06,0.0006438,120]
[321889147,1712584241435,-1469.82,0.0006438,120]
[321889148,1712584241444,-500.0,0.0006438,120]
[321889150,1712584241453,-1688.44,0.0006438,120]
[321889152,1712584241462,-500.0,0.00064381,120]
[321889154,1712584241472,-420.88092862,0.00064381,120]
[321889156,1712584241482,-500.0,0.00064381,120]
[321889158,1712584241491,-500.0,0.00064381,120]
[321889159,1712584241500,-500.0,0.00064381,120]
[321889161,1712584241510,-1180.39,0.00064381,120]
[321889163,1712584241520,-500.0,0.00064381,120]
[321889165,1712584241529,-500.0,0.00064381,120]
[321889174,1712584241605,-1860.21,0.00064381,120]
[321889177,1712584241614,-825.34,0.00064381,120]
[321889178,1712584241624,-500.0,0.00064381,120]
[321889181,1712584241634,-500.0,0.00064381,120]
[321889184,1712584241644,-500.0,0.00064381,120]
[321889186,1712584241653,-500.0,0.00064381,120]
[321889188,1712584241664,-1759.78,0.00064381,120]
[321889190,1712584241674,-500.0,0.00064381,120]
[321889191,1712584241684,-751.15,0.00064381,2]
[321889193,1712584241693,-500.0,0.00064381,120]
[321889195,1712584241703,-18309.75,0.00064381,120]
[321889197,1712584241712,-3005.57,0.00064381,120]
[321889199,1712584241722,-500.0,0.00064381,120]
[321889201,1712584241732,-500.0,0.00064381,120]
[321889202,1712584241742,-645.76994637,0.00064381,120]
[321889204,1712584241751,-1105.46,0.00064381,120]
[321889206,1712584241761,-1228.05,0.00064381,120]
[321889208,1712584241770,-500.0,0.00064381,120]
[321889210,1712584241779,-500.0,0.00064381,120]
[321889212,1712584241789,-500.0,0.00064381,120]
[321889213,1712584241799,-1672.78,0.00064381,120]
[321889215,1712584241810,-361.07706562,0.00064381,120]
[321889217,1712584241820,-500.0,0.00064382,120]
[321889219,1712584241831,-500.0,0.00064382,120]
[321889221,1712584241841,-500.0,0.00064382,120]
[321889223,1712584241851,-500.0,0.00064382,120]
[321889225,1712584241860,-500.0,0.00064382,120]
[321889227,1712584241869,-507.71593614,0.00064382,120]
[321889229,1712584241880,-716.86,0.00064383,120]
[321889230,1712584241889,-500.0,0.00064383,120]
[321889232,1712584241898,-515.81,0.00064383,120]
[321889234,1712584241907,-594.69993184,0.00064383,120]
[321889236,1712584241917,-500.0,0.00064383,120]
[321889238,1712584241927,-500.0,0.00064383,120]
[321889240,1712584241937,-632.66,0.00064383,120]
[321889242,1712584241947,-500.0,0.00064383,120]
[321889243,1712584241956,-833.7,0.00064383,120]
[321889245,1712584241966,-1067.98,0.00064383,120]
[321889247,1712584241976,-500.0,0.00064383,120]
[321889249,1712584241986,-181.14,0.00064383,120]
[321889251,1712584241996,-500.0,0.00064383,120]
[321889253,1712584242006,-500.0,0.00064383,120]
[321889255,1712584242015,-3744.26,0.00064383,90]
[321889256,1712584242025,-500.0,0.00064383,120]
[321889258,1712584242034,-669.32,0.00064383,21]
[321889260,1712584242044,-500.0,0.00064383,120]
[321889262,1712584242053,-500.0,0.00064383,120]
[321889264,1712584242063,-500.0,0.00064383,120]
[321889266,1712584242073,-500.0,0.00064383,120]
[321889267,1712584242082,-6096.5,0.00064383,120]
[321889269,1712584242092,-500.0,0.00064383,120]
[321889271,1712584242101,-500.0,0.00064383,120]
[321889273,1712584242110,-3625.23,0.00064383,120]
[321889275,1712584242119,-500.0,0.00064383,120]
[321889277,1712584242130,-500.0,0.00064383,60]
[321889279,1712584242139,-500.0,0.00064383,120]
[321889280,1712584242149,-1900.0,0.00064383,120]
[321889282,1712584242158,-500.0,0.00064383,120]
[321889284,1712584242168,-500.0,0.00064383,120]
[321889286,1712584242177,-554.54,0.00064383,120]
[321889288,1712584242187,-841.39,0.00064383,120]
[321889290,1712584242197,-1834.82,0.00064383,120]
[321889293,1712584242206,-50000.0,0.000649,120]
[321889295,1712584242215,-10000.0,0.000649,120]
[321889297,1712584242225,-1587.98517804,0.00065104,2]
[321889300,1712584242234,-3055.5,0.00065202,120]
[321889302,1712584242243,-2180.13,0.00065202,120]
[321889304,1712584242253,-1752.06,0.00065202,120]
[321889306,1712584242263,-1469.82,0.00065202,120]
[321889308,1712584242275,-500.0,0.00065202,120]
[321889309,1712584242285,-1688.44,0.00065202,120]
[321889311,1712584242295,-500.0,0.00065203,120]
[321889313,1712584242304,-500.0,0.00065203,120]
[321889315,1712584242313,-580.5717742,0.00065203,120]
[321889317,1712584242323,-1180.39,0.00065203,120]
[321889319,1712584242332,-516.45611841,0.00065203,120]
[321889321,1712584242341,-500.0,0.00065203,120]
[321889322,1712584242351,-1860.21,0.00065203,120]
[321889324,1712584242361,-825.34,0.00065203,120]
[321889326,1712584242372,-500.0,0.00065203,120]
[321889328,1712584242383,-500.0,0.00065203,120]
[321889330,1712584242393,-500.0,0.00065203,120]
[321889332,1712584242402,-1759.78,0.00065203,120]
[321889334,1712584242411,-500.0,0.00065203,120]
[321889335,1712584242420,-751.15,0.00065203,2]
[321889337,1712584242429,-500.0,0.00065203,120]
[321889339,1712584242438,-18309.75,0.00065203,120]
[321889341,1712584242447,-3005.57,0.00065203,120]
[321889343,1712584242457,-500.0,0.00065203,120]
[321889345,1712584242466,-500.0,0.00065203,120]
[321889347,1712584242475,-1105.46,0.00065203,120]
[321889348,1712584242485,-1228.05,0.00065203,120]
[321889350,1712584242495,-500.0,0.00065203,120]
[321889352,1712584242505,-500.0,0.00065203,120]
[321889354,1712584242514,-500.0,0.00065203,120]
[321889356,1712584242523,-1672.78,0.00065203,120]
[321889358,1712584242532,-500.0,0.00065204,120]
[321889360,1712584242542,-500.0,0.00065204,120]
[321889362,1712584242551,-500.0,0.00065204,120]
[321889363,1712584242560,-716.86,0.00065205,120]
[321889365,1712584242570,-500.0,0.00065205,120]
[321889367,1712584242581,-515.81,0.00065205,120]
[321889369,1712584242590,-500.0,0.00065205,120]
[321889371,1712584242599,-500.0,0.00065205,120]
[321889373,1712584242608,-632.66,0.00065205,120]
[321889375,1712584242617,-500.0,0.00065205,120]
[321889376,1712584242627,-833.7,0.00065205,120]
[321889378,1712584242636,-1067.98,0.00065205,120]
[321889380,1712584242646,-500.0,0.00065205,120]
[321889382,1712584242655,-500.0,0.00065205,120]
[321889384,1712584242664,-500.0,0.00065205,120]
[321889386,1712584242673,-3744.26,0.00065205,90]
[321889388,1712584242682,-500.0,0.00065205,120]
[321889389,1712584242691,-669.32,0.00065205,21]
[321889391,1712584242700,-500.0,0.00065205,120]
[321889393,1712584242709,-500.0,0.00065205,120]
[321889395,1712584242718,-500.0,0.00065205,120]
[321889397,1712584242728,-6096.5,0.00065205,120]
[321889399,1712584242740,-500.0,0.00065205,120]
[321889401,1712584242749,-3625.23,0.00065205,120]
[321889402,1712584242758,-500.0,0.00065205,120]
[321889404,1712584242767,-500.0,0.00065205,60]
[321889406,1712584242776,-500.0,0.00065205,120]
[321889408,1712584242786,-1900.0,0.00065205,120]
[321889410,1712584242796,-500.0,0.00065205,120]
[321889412,1712584242805,-500.0,0.00065205,120]
[321889414,1712584242815,-554.54,0.00065205,120]
[321889416,1712584242825,-841.39,0.00065205,120]
[321889418,1712584242834,-1834.82,0.00065205,120]
[321889419,1712584242843,-167.63216158,0.00065653,2]
[321889421,1712584242853,-500.0,0.00065753,120]
[321889423,1712584242862,-2069.01,0.00065753,120]
[321889425,1712584242871,-2069.01,0.00065753,120]
[321889427,1712584242882,-2069.01,0.00065753,120]
[321889429,1712584242891,-2069.01,0.00065753,120]
[321889431,1712584242900,-2069.01,0.00065753,120]
[321889433,1712584242910,-2069.01,0.00065753,120]
[321889435,1712584242919,-2069.01,0.00065753,120]
[321889436,1712584242928,-2069.01,0.00065753,120]
[321889438,1712584242938,-2069.01,0.00065753,120]
[321889440,1712584242947,-2069.01,0.00065753,120]
[321889442,1712584242956,-3055.5,0.00066024,120]
[321889443,1712584242965,-2180.13,0.00066024,120]
[321889446,1712584242974,-1752.06,0.00066024,120]
[321889449,1712584242983,-1469.82,0.00066024,120]
[321889452,1712584242992,-500.0,0.00066024,120]
[321889454,1712584243002,-1688.44,0.00066024,120]
[321889457,1712584243010,-500.0,0.00066025,120]
[321889460,1712584243020,-500.0,0.00066025,120]
[321889463,1712584243029,-1180.39,0.00066025,120]
[321889466,1712584243038,-500.0,0.00066025,120]
[321889470,1712584243048,-1860.21,0.00066025,120]
[321889474,1712584243057,-825.34,0.00066025,120]
[321889477,1712584243067,-500.0,0.00066025,120]
[321889480,1712584243076,-500.0,0.00066025,120]
[321889483,1712584243085,-500.0,0.00066025,120]
[321889486,1712584243094,-1759.78,0.00066025,120]
[321889489,1712584243104,-500.0,0.00066025,120]
[321889492,1712584243113,-751.15,0.00066025,2]
[321889494,1712584243123,-500.0,0.00066025,120]
[321889495,1712584243135,-18309.75,0.00066025,120]
[321889498,1712584243144,-3005.57,0.00066025,120]
[321889501,1712584243153,-500.0,0.00066025,120]
[321889513,1712584243223,-500.0,0.00066025,120]
[321889517,1712584243233,-1105.46,0.00066025,120]
[321889520,1712584243243,-1228.05,0.00066025,120]
[321889522,1712584243253,-500.0,0.00066025,120]
[321889525,1712584243262,-2069.01,0.00066025,120]
[321889527,1712584243272,-500.0,0.00066025,120]
[321889529,1712584243283,-500.0,0.00066025,120]
[321889531,1712584243292,-1672.78,0.00066025,120]
[321889532,1712584243301,-500.0,0.00066026,120]
[321889533,1712584243310,-500.0,0.00066026,120]
[321889534,1712584243321,-192.21415531,0.00066026,120]
[321889535,1712584243330,-716.86,0.00066027,120]
[321889536,1712584243339,-500.0,0.00066027,120]
[321889537,1712584243348,-515.81,0.00066027,120]
[321889538,1712584243358,-500.0,0.00066027,120]
[321889539,1712584243368,-500.0,0.00066027,120]
[321889540,1712584243379,-632.66,0.00066027,120]
[321889541,1712584243388,-500.0,0.00066027,120]
[321889542,1712584243397,-833.7,0.00066027,120]
[321889543,1712584243406,-1067.98,0.00066027,120]
[321889544,1712584243415,-500.0,0.00066027,120]
[321889545,1712584243424,-500.0,0.00066027,120]
[321889546,1712584243434,-500.0,0.00066027,120]
[321889547,1712584243444,-3744.26,0.00066027,90]
[321889548,1712584243453,-500.0,0.00066027,120]
[321889549,1712584243463,-669.32,0.00066027,21]
[321889550,1712584243472,-433.23114357,0.00066027,120]
[321889551,1712584243481,-500.0,0.00066027,120]
[321889552,1712584243490,-500.0,0.00066027,120]
[321889553,1712584243501,-6096.5,0.00066027,120]
[321889554,1712584243511,-217.6180453,0.00066027,120]
[321889555,1712584243521,-3625.23,0.00066027,120]
[321889556,1712584243530,-479.83220748,0.00066027,60]
[321889557,1712584243539,-500.0,0.00066027,120]
[321889558,1712584243549,-1900.0,0.00066027,120]
[321889559,1712584243558,-500.0,0.00066027,120]
[321889560,1712584243567,-500.0,0.00066027,120]
[321889561,1712584243577,-554.54,0.00066027,120]
[321889562,1712584243586,-841.39,0.00066027,120]
[321889563,1712584243596,-1834.82,0.00066027,120]
[321889564,1712584243605,-3055.5,0.00066846,120]
[321889565,1712584243615,-2180.13,0.00066846,120]
[321889566,1712584243624,-1752.06,0.00066846,120]
[321889567,1712584243633,-1469.82,0.00066846,120]
[321889568,1712584243642,-391.64,0.00066846,120]
[321889569,1712584243652,-1688.44,0.00066846,120]
[321889570,1712584243661,-500.0,0.00066847,120]
[321889571,1712584243671,-500.0,0.00066847,120]
[321889572,1712584243680,-1180.39,0.00066847,120]
[321889573,1712584243689,-500.0,0.00066847,120]
[321889574,1712584243699,-1860.21,0.00066847,120]
[321889575,1712584243709,-825.34,0.00066847,120]
[321889576,1712584243715,-500.0,0.00066847,120]
[321889577,1712584243722,-634.863289,0.00066847,120]
[321889578,1712584243731,-1759.78,0.00066847,120]
[321889579,1712584243740,-500.0,0.00066847,120]
[321889580,1712584243752,-751.15,0.00066847,2]
[321889581,1712584243763,-18309.75,0.00066847,120]
[321889582,1712584243773,-3005.57,0.00066847,120]
[321889583,1712584243782,-500.0,0.00066847,120]
[321889584,1712584243791,-1105.46,0.00066847,120]
[321889585,1712584243801,-1228.05,0.00066847,120]
[321889586,1712584243811,-500.0,0.00066847,120]
[321889587,1712584243820,-2069.01,0.00066847,120]
[321889588,1712584243829,-500.0,0.00066847,120]
[321889589,1712584243838,-500.0,0.00066847,120]
[321889590,1712584243848,-1672.78,0.00066847,120]
[321889591,1712584243857,-500.0,0.00066848,120]
[321889592,1712584243866,-500.0,0.00066848,120]
[321889593,1712584243876,-716.86,0.00066849,120]
[321889594,1712584243885,-500.0,0.00066849,120]
[321889595,1712584243894,-515.81,0.00066849,120]
[321889596,1712584243903,-426.17249354,0.00066849,120]
[321889597,1712584243912,-500.0,0.00066849,120]
[321889599,1712584243921,-632.66,0.00066849,120]
[321889601,1712584243930,-500.0,0.00066849,120]
[321889603,1712584243939,-833.7,0.00066849,120]
[321889604,1712584243947,-1067.98,0.00066849,120]
[321889605,1712584243956,-500.0,0.00066849,120]
[321889606,1712584243966,-500.0,0.00066849,120]
[321889607,1712584243975,-500.0,0.00066849,120]
[321889608,1712584243984,-3744.26,0.00066849,90]
[321889609,1712584243993,-500.0,0.00066849,120]
[321889610,1712584244003,-669.32,0.00066849,21]
[321889611,1712584244012,-500.0,0.00066849,120]
[321889612,1712584244021,-500.0,0.00066849,120]
[321889613,1712584244030,-6096.5,0.00066849,120]
[321889614,1712584244039,-3625.23,0.00066849,120]
[321889615,1712584244049,-298.18,0.00066849,120]
[321889616,1712584244057,-1900.0,0.00066849,120]
[321889617,1712584244066,-500.0,0.00066849,120]
[321889618,1712584244075,-500.0,0.00066849,120]
[321889619,1712584244084,-554.54,0.00066849,120]
[321889620,1712584244093,-841.39,0.00066849,120]
[321889621,1712584244102,-1834.82,0.00066849,120]
[321889622,1712584244111,-3055.5,0.00067668,120]
[321889623,1712584244119,-2180.13,0.00067668,120]
[321889624,1712584244130,-1752.06,0.00067668,120]
[321889625,1712584244139,-1469.82,0.00067668,120]
[321889626,1712584244148,-1688.44,0.00067668,120]
[321889627,1712584244157,-500.0,0.00067669,120]
[321889628,1712584244166,-500.0,0.00067669,120]
[321889629,1712584244175,-1180.39,0.00067669,120]
[321889630,1712584244184,-528.01898413,0.00067669,120]
[321889631,1712584244193,-1860.21,0.00067669,120]
[321889632,1712584244202,-825.34,0.00067669,120]
[321889633,1712584244212,-487.2153415,0.00067669,120]
[321889634,1712584244220,-1759.78,0.00067669,120]
[321889635,1712584244229,-500.0,0.00067669,120]
[321889636,1712584244238,-751.15,0.00067669,2]
[321889637,1712584244247,-18309.75,0.00067669,120]
[321889638,1712584244256,-3005.57,0.00067669,120]
[321889639,1712584244265,-500.0,0.00067669,120]
[321889640,1712584244275,-1105.46,0.00067669,120]
[321889641,1712584244285,-1228.05,0.00067669,120]
[321889642,1712584244294,-500.0,0.00067669,120]
[321889643,1712584244303,-2069.01,0.00067669,120]
[321889644,1712584244312,-500.0,0.00067669,120]
[321889645,1712584244321,-500.0,0.00067669,120]
[321889646,1712584244330,-1672.78,0.00067669,120]
[321889647,1712584244339,-500.0,0.0006767,120]
[321889648,1712584244348,-500.0,0.0006767,120]
[321889649,1712584244356,-716.86,0.00067671,120]
[321889650,1712584244366,-500.0,0.00067671,120]
[321889651,1712584244375,-515.81,0.00067671,120]
[321889652,1712584244385,-500.0,0.00067671,120]
[321889653,1712584244394,-632.66,0.00067671,120]
[321889654,1712584244403,-500.0,0.00067671,120]
[321889655,1712584244412,-833.7,0.00067671,120]
[321889656,1712584244421,-1067.98,0.00067671,120]
[321889657,1712584244430,-500.0,0.00067671,120]
[321889658,1712584244439,-500.0,0.00067671,120]
[321889659,1712584244453,-3744.26,0.00067671,90]
[321889660,1712584244463,-500.0,0.00067671,120]
[321889661,1712584244472,-669.32,0.00067671,21]
[321889662,1712584244481,-500.0,0.00067671,120]
[321889663,1712584244490,-500.0,0.00067671,120]
[321889664,1712584244499,-6096.5,0.00067671,120]
[321889665,1712584244508,-3625.23,0.00067671,120]
[321889666,1712584244518,-1900.0,0.00067671,120]
[321889667,1712584244526,-500.0,0.00067671,120]
[321889668,1712584244535,-500.0,0.00067671,120]
[321889669,1712584244545,-554.54,0.00067671,120]
[321889670,1712584244554,-841.39,0.00067671,120]
[321889671,1712584244563,-1834.82,0.00067671,120]
[321889672,1712584244572,-253.667706,0.00067772,2]
[321889673,1712584244581,-500.0,0.0006849,120]
[321889674,1712584244590,-500.0,0.0006849,120]
[321889675,1712584244599,-1180.39,0.0006849,120]
[321889676,1712584244609,-1860.21,0.0006849,120]
[321889677,1712584244619,-825.34,0.0006849,120]
[321889678,1712584244694,-1759.78,0.0006849,120]
[321889679,1712584244704,-3055.5,0.0006849,120]
[321889680,1712584244713,-1884.48353749,0.0006849,120]
[321889681,1712584245045,-295.64646251,0.0006849,120]
[321889682,1712584245055,-451.8237675,0.0006849,120]
[321889683,1712584245066,-1300.2362325,0.0006849,120]
[321889684,1712584245076,-1469.82,0.0006849,120]
[321889685,1712584245085,-751.15,0.0006849,2]
[321889686,1712584245094,-2598.7937675,0.0006849,120]
[321889687,1712584245106,-1047.31444901,0.0006849,120]
[321889688,1712584245237,-500.0,0.00060273,120]
[321889689,1712584245247,-500.44,0.00061095,120]
[321889690,1712584245256,-500.0,0.00061917,120]
[321889691,1712584245266,-500.0,0.00062739,120]
[321889692,1712584245277,-500.0,0.00063561,120]
[321889693,1712584245288,-500.0,0.00064383,120]
[321889694,1712584245297,-500.0,0.00065205,120]
[321889695,1712584245307,-500.0,0.00066027,120]
[321889696,1712584245317,-500.0,0.00066849,120]
[321889697,1712584245332,-500.0,0.00067671,120]
[321889698,1712584245348,-14663.64178349,0.0006849,120]
[321889699,1712584245367,-1688.44,0.0006849,120]
[321889700,1712584245381,-196.47348445,0.0006849,120]
[321889701,1712584245397,-501.98208771,0.0006849,120]
[321889702,1712584245455,-1219.80855034,0.0006849,120]
[321889703,1712584245470,-565.0,0.0006849,120]
[321889704,1712584245486,-522.3058775,0.0006849,120]